Workbook

Sheet ORÇAMENTOS
A1: Licitação de Ferramentas
A2: CÓDIGO | B2: Item | C2: QTDE | D2: UN | E2: ESPECIFICAÇÃO | F2: PARAFUSOS NORMA D.I.N | G2: CRV PARAFUSOS | H2: PAFER | I2: COMERCIO DE PARAFUSOS E FERRAGENS BERTOLDI LTDA | J2: KAEFER | K2: MATTES | L2: VIRA COMERCIAL | M2: REI DAS FERRAMENTAS | N2: COMERCIAL ANDREOLA | O2: HERVAL PEÇAS E FERRAGENS | P2: TRK COMÉRCIO VAREJISTA DE FERRAGENS E FERRAMENTAS LTDA | Q2: WEST TOOLS | R2: GRAVIA | S2: AGROBILL | T2: OCEANO | U2: DINAMAC | V2: GALPÃO | W2: ANHANGUERA | X2: LOJA DO MECÂNICO | Y2: FERRAMENTAS KENNEDY | Z2: MAGAZINE LUIZA | AA2: AMAZON | AB2: AMERICANAS | AC2: AFUBRA | AD2: EXTRA | AE2: BRAFER | AF2: BENTO CARRINHOS | AG2: TUDO NA MÃO | AH2: METAL INDÚSTRIA BRASILEIRA | AI2: CARREFOUR | AJ2: IRMÃOS ABAGE | AK2: LF MAQUINAS E FERRAMENTAS | AL2: COFERMETA | AM2: HAZZIN | AN2: BSHSTORE | AO2: INCORZUL | AP2: LOJA DO SOQUETE | AQ2: TUDOPARABORRACHARIA | AR2: MADEIRA MADEIRA | AS2: SUPER PRO ATACADO | AT2: PILAR CONSTRUÇÕES | AU2: FERRAMENTAS GERAIS | AV2: DOMINIK | AW2: MAQSOLDAS | AX2: EKAZZA | AY2: DUTRA MÁQUINAS | AZ2: CASAS BAHIA | BA2: ZIG FERRAMENTAS | BB2: ALCAMAR | BC2: AGROMAQI | BD2: PALÁCIO DAS FERRAMENTAS | BE2: CASA DO SOLDADOR | BF2: FERRAMENTAS GERAIS | BG2: MARTINELI | BH2: A CASA DOS MACACOS | BI2: DISAPAR | BJ2: LIVEFER | BK2: FERRAMAC | BL2: SUPER PRO ATACADO | BM2: REFER COMÉRCIO | BN2: COMPRE SEGURANCA | BO2: MEGATHOR | BP2: AGROTAMA | BQ2: CASA DO MECANICO | BR2: MUNDO DAS FECHADURAS | BS2: VIAINOX | BT2: ATLAS | BU2: ARTE MATERIAIS DE CONSTRUÇÃO | BV2: PARAFUSO FACIL | BW2: DPASCHOAL | BX2: CAMPAGNARO | BY2: AGRÍCOLA SHOP | BZ2: TRAMONTINA | CA2: CCP | CB2: SOEDRAL | CC2: MÉDIA | CD2: ARRED | CE2: ARRED X QTDE | CF2: TOTAL
B3: 1 | C3: 37 | D3: un | E3: Adaptador Redução Impacto ¾ X 1´´ | X3: 97.11 | Y3: 71.49 | AQ3: 50 | CC3: =AVERAGE(Y3:AQ3) -> 60.745 | CD3: =ROUND(CC3,2) -> 60.75 | CE3: =CD3*C3 -> 2247.75 | CF3: =SUM(CE3:CE326) -> 3197633.91
B4: 2 | C4: 37 | D4: un | E4: Adaptador Redução Impacto 1´´ X ¾ | AY4: 150.01 | BA4: 151.9 | BE4: 139.79 | CC4: =AVERAGE(AY4:BE4) -> 147.2333333 | CD4: =ROUND(CC4,2) -> 147.23 | CE4: =CD4*C4 -> 5447.51
B5: 3 | C5: 37 | D5: un | E5: Adaptador Redução Impacto 3/4 X 1/2 | P5: 55 | BK5: 110.96 | BL5: 62.99 | BS5: 78.11 | CC5: =AVERAGE(BL5:BS5,P5) -> 65.36666667 | CD5: 65.37 | CE5: 2418.69
A6: 990605401 - 1 | B6: 4 | C6: 10 | D6: un | E6: Afiador elétrico para correntes de moto serra – 220V | X6: 271.9 | Y6: 268.99 | BM6: 263.2 | CC6: =AVERAGE(X6:BM6) -> 268.03 | CD6: 268.03 | CE6: 2680.3
A7: 990607972 - 1 | B7: 5 | C7: 67 | D7: un | E7: chave de fenda 1/8 x 3" | Z7: 4.99 | BF7: 7.02 | BG7: 7.26 | CC7: =AVERAGE(BF7:BG7) -> 7.14 | CD7: 7.14 | CE7: 478.38
A8: 10118969 - 2 | B8: 6 | C8: 29 | D8: un | E8: Alicate bico chato 6” (de abrir) | N8: 32.9 | O8: 22.5 | P8: 45 | X8: 31.9 | Z8: 32.22 | AS8: 24.49 | CC8: =AVERAGE(N8:O8,X8:Z8,AS8) -> 28.802 | CD8: 28.8 | CE8: 835.2
A9: 10118970 - 1 | B9: 7 | C9: 63 | D9: un | E9: Alicate de corte diagonal (modelo sueco) – 1.000V | O9: 22.1 | P9: 50 | X9: 173.9 | Z9: 196.19 | AK9: 180.9 | CC9: =AVERAGE(X9:AK9) -> 183.6633333 | CD9: 183.66 | CE9: 11570.58
A10: 990607973 - 1 | B10: 8 | C10: 60 | D10: un | E10: Alicate de Pressão triangular 10" com mordente | O10: 31.74 | P10: 75 | X10: 44.9 | Z10: 54.19 | AK10: 53.9 | CC10: =AVERAGE(AK10,X10:Z10,O10) -> 46.1825 | CD10: 46.18 | CE10: 2770.8
A11: 10118973 - 1 | B11: 9 | C11: 21 | D11: un | E11: Alicate rebitador manual 10" – corpo em aço – cabeça giratória – uso profissional | N11: 83.9 | X11: 114.9 | Z11: 119.9 | AK11: 209.9 | CC11: =AVERAGE(X11:Z11,N11) -> 106.2333333 | CD11: 106.23 | CE11: 2230.83
A12: 10118975 - 1 | B12: 10 | C12: 95 | D12: un | E12: Alicate universal 8” – em aço, com cabo isolado (1.000V) e anti deslizante | N12: 45.9 | O12: 24.95 | P12: 45 | Y12: 24.99 | BD12: 33.5 | BG12: 38.72 | CC12: =AVERAGE(BD12:BG12,Y12,O12) -> 30.54 | CD12: 30.54 | CE12: 2901.3
A13: 990607974 - 1 | B13: 11 | C13: 74 | D13: un | E13: Ancinho leve 14 dentes com cabo 150 cm | N13: 20.5 | O13: 21 | X13: 59.9 | AI13: 63.73 | AY13: 49.31 | CC13: =AVERAGE(AY13,AI13,X13) -> 57.64666667 | CD13: 57.65 | CE13: 4266.1
A14: 990605402 - 1 | B14: 12 | C14: 6 | D14: un | E14: APARELHO DE SOLDA ARCO ELÉTRICO 500 AMPERES ELETRODO/TIG | AW14: 14764.76 | AX14: 4949.84 | BD14: 17735.9 | CC14: =AVERAGE(BD14,AW14) -> 16250.33 | CD14: 16250.33 | CE14: 97501.98
A15: 990605402 - 2 | B15: 13 | C15: 4 | D15: un | E15: APARELHO DE SOLDA MIG 500 AMPERES COM TOCHA RESFRIADA | X15: 22999.9 | BI15: 25828.07 | BJ15: 27999 | CC15: =AVERAGE(BI15:BJ15,X15) -> 25608.99 | CD15: 25608.99 | CE15: 102435.96
A16: 10106911 - 4 | B16: 14 | C16: 57 | D16: un | E16: Arame solda mig 1,2mm - tubular rolo 15 kg | O16: 152.4 | Y16: 159.09 | AS16: 159.99 | BD16: 208.26 | CC16: =AVERAGE(BD16,AS16,Y16,O16) -> 169.935 | CD16: 169.94 | CE16: 9686.58
A17: 990607975 - 1 | B17: 15 | C17: 17 | D17: un | E17: Arco de serra 12 tubular fechado as-123 | O17: 14.57 | P17: 40 | X17: 21.58 | Z17: 25 | AU17: 25.99 | CC17: =AVERAGE(AU17,X17:Z17) -> 24.19 | CD17: 24.19 | CE17: 411.23
A18: 990607976 - 1 | B18: 16 | C18: 57 | D18: un | E18: Aro com Pneu e Câmara para Carrinho Completo, tubo 1.1/4” para eixo de 1" para carrinho de mão, pneu 3,25 x 8, pressão máxima recomendada: 25PSI e aro 8” | AA18: 54.9 | AR18: 41.96 | BQ18: 85.12 | CC18: =AVERAGE(AR18,AA18) -> 48.43 | CD18: 48.43 | CE18: 2760.51
A19: 990607977 - 1 | B19: 17 | C19: 32 | D19: un | E19: Aspirador de pó industrial inox mínimo 1600 W 220 V | P19: 3570 | X19: 541.9 | Y19: 559.09 | AA19: 499.99 | CC19: =AVERAGE(X19:AA19) -> 533.66 | CD19: 533.66 | CE19: 17077.12
A20: 10119612 - 1 | B20: 18 | C20: 5 | D20: un | E20: Betoneira – capacidade mínima de 220 litros – motor de, no mínimo, 01 CV / 220V – correia acoplada 02 polos: A-40 / A-22 | BB20: 3949.46 | BC20: 2501.98 | BD20: 2498.9 | CC20: =AVERAGE(BB20:BD20) -> 2983.446667 | CD20: 2983.45 | CE20: 14917.25
A21: 10119612 - 2 | B21: 19 | C21: 4 | D21: un | E21: Betoneira – capacidade mínima de 400 litros – motor de, no mínimo, 02 CV / 220V – correia acoplada 04 polos: A-40 / A-22 | X21: 4490 | AU21: 4490 | AV21: 4858.75 | CC21: =AVERAGE(AU21:AV21,X21) -> 4612.916667 | CD21: 4612.92 | CE21: 18451.68
B22: 20 | C22: 50 | D22: un | E22: Bico De Contato Longo Oximig 1,20Mm | AK22: 13.9 | AV22: 17.5 | BD22: 16.48 | CC22: =AVERAGE(BD22,AV22,AK22) -> 15.96 | CD22: 15.96 | CE22: 798
A23: 990605403 - 1 | B23: 21 | C23: 24 | D23: un | E23: Bico prendedor para encher pneus universal | P23: 30 | X23: 10.9 | AY23: 17.01 | BG23: 9.91 | CC23: =AVERAGE(BG23,X23) -> 10.405 | CD23: 10.41 | CE23: 249.84
A24: 990608067 - 1 | B24: 22 | C24: 48 | D24: un | E24: BITS FENDA 6-8 mm | X24: 9.57 | Y24: 12.49 | CC24: =AVERAGE(X24:Y24) -> 11.03 | CD24: 11.03 | CE24: 529.44
A25: 990608068 - 1 | B25: 23 | C25: 31 | D25: un | E25: BITS PHILIPS DUPLA PH2 75MM | Z25: R$ 13,68 | AO25: 11.77 | AP25: 16.37 | CC25: =AVERAGE(AO25:AP25,Z25) -> 14.07 | CD25: 14.07 | CE25: 436.17
A26: 990605404 - 1 | B26: 24 | C26: 102 | D26: un | E26: Bocal para tocha solda MIG | P26: 55 | X26: 10.99 | Z26: R$ 13,42 | BF26: 14.43 | CC26: =AVERAGE(BF26,X26:Z26) -> 12.71 | CD26: 12.71 | CE26: 1296.42
A27: 990605405 - 1 | B27: 25 | C27: 60 | D27: un | E27: Boina de lã de carneiro para polimento 8” | P27: 150 | Y27: 28.79 | Z27: 23.9 | AA27: 25.18 | CC27: =AVERAGE(Y27:AA27) -> 25.95666667 | CD27: 25.96 | CE27: 1557.6
A28: 99060200 - 12 | B28: 26 | C28: 93 | D28: un | E28: Broca aço rápido 10 mm sem carbono | P28: 28 | Q28: 38.18 | X28: 22.99 | AG28: 19.75 | AU28: 20.99 | CC28: =AVERAGE(AU28,AG28,X28,P28) -> 22.9325 | CD28: 22.93 | CE28: 2132.49
A29: 99060200 - 13 | B29: 27 | C29: 91 | D29: un | E29: Broca aço rápido 11 mm sem carbono | P29: 34 | Q29: 42.09 | X29: 32.99 | Y29: 23.99 | Z29: 17.45 | CC29: =AVERAGE(X29:Y29,P29:Q29) -> 33.2675 | CD29: 33.27 | CE29: 3027.57
A30: 99060200 - 14 | B30: 28 | C30: 92 | D30: un | E30: Broca aço rápido 12 mm sem carbono | P30: 40 | Q30: 52.37 | X30: 32.99 | AY30: 41.71 | CC30: =AVERAGE(AY30,X30,P30:Q30) -> 41.7675 | CD30: 41.77 | CE30: 3842.84
A31: 99060200 - 15 | B31: 29 | C31: 90 | D31: un | E31: Broca aço rápido 13 mm sem carbono | P31: 38 | Q31: 56.3 | X31: 42.99 | Z31: 42.38 | CC31: =AVERAGE(X31:Z31,P31:Q31) -> 44.9175 | CD31: 44.92 | CE31: 4042.8
A32: 99060200 - 16 | B32: 30 | C32: 90 | D32: un | E32: Broca aço rápido 14 mm sem carbono | P32: 90 | Q32: 75.02 | X32: 34.9 | Z32: 21.9 | CC32: =AVERAGE(X32:Z32,) -> 18.93333333 | CD32: 18.93 | CE32: 1703.7
A33: 99060200 - 17 | B33: 31 | C33: 49 | D33: un | E33: Broca aço rápido 16 mm sem carbono | Q33: 112.85 | X33: 47.79 | Z33: 36 | CC33: =AVERAGE(X33:Z33) -> 41.895 | CD33: 41.9 | CE33: 2053.1
A34: 99060200 - 18 | B34: 32 | C34: 46 | D34: un | E34: Broca aço rápido 18 mm sem carbono | P34: 115 | Q34: 144.11 | X34: 144.9 | AA34: 117.81 | AO34: 121.95 | CC34: =AVERAGE(AO34,X34:AA34,P34:Q34) -> 128.754 | CD34: 128.75 | CE34: 5922.5
A35: 99060200 - 22 | B35: 33 | C35: 78 | D35: un | E35: Broca aço rápido 2 mm sem carbono | P35: 2.5 | Q35: 4.5 | X35: 1.99 | AG35: 2.5 | CC35: =AVERAGE(AG35,X35,P35) -> 2.33 | CD35: 2.33 | CE35: 181.74
A36: 99060200 - 19 | B36: 34 | C36: 49 | D36: un | E36: Broca aço rápido 20 mm sem carbono | P36: 150 | Q36: 209.55 | X36: 197.9 | BD36: 51.3 | CC36: =AVERAGE(X36,P36:Q36) -> 185.8166667 | CD36: 185.82 | CE36: 9105.18
A37: 99060200 - 20 | B37: 35 | C37: 46 | D37: un | E37: Broca aço rápido 22 mm sem carbono | P37: 180 | Q37: 259.17 | X37: 286.9 | Z37: 149.49 | CC37: =AVERAGE(Z37,P37:Q37) -> 196.22 | CD37: 196.22 | CE37: 9026.12
A38: 99060200 - 21 | B38: 36 | C38: 85 | D38: un | E38: Broca aço rápido 25 mm sem carbono | P38: 250 | Q38: 428.12 | X38: 419.9 | AO38: 240.09 | CC38: =AVERAGE(AO38,P38) -> 245.045 | CD38: 245.05 | CE38: 20829.25
A39: 99060200 - 23 | B39: 37 | C39: 92 | D39: un | E39: Broca aço rápido 3 mm sem carbono | P39: 3 | Q39: 5.89 | X39: 2.89 | Z39: 2.58 | CC39: =AVERAGE(X39:Z39,P39) -> 2.823333333 | CD39: 2.82 | CE39: 259.44
A40: 99060200 - 24 | B40: 38 | C40: 92 | D40: un | E40: Broca aço rápido 4 mm sem carbono | P40: 5 | Q40: 7.4 | X40: 4.99 | AJ40: 6.79 | CC40: =AVERAGE(AJ40,X40,P40:Q40) -> 6.045 | CD40: 6.05 | CE40: 556.6
A41: 99060200 - 25 | B41: 39 | C41: 81 | D41: un | E41: Broca aço rápido 4,5 mm sem carbono | P41: 7.5 | Q41: 7.9 | AK41: 6.89 | AO41: 5.73 | CC41: =AVERAGE(AO41,AK41,P41:Q41) -> 7.005 | CD41: 7.01 | CE41: 567.81
A42: 99060200 - 26 | B42: 40 | C42: 92 | D42: un | E42: Broca aço rápido 5 mm sem carbono | P42: 7 | Q42: 8.25 | X42: 5.89 | AJ42: 8.56 | CC42: =AVERAGE(AJ42,X42,P42:Q42) -> 7.425 | CD42: 7.43 | CE42: 683.56
A43: 99060200 - 27 | B43: 41 | C43: 78 | D43: un | E43: Broca aço rápido 5,5 mm sem carbono | P43: 7 | Q43: 11.15 | AK43: 6.39 | BG43: 8.41 | CC43: =AVERAGE(BG43,AK43,P43:Q43) -> 8.2375 | CD43: 8.24 | CE43: 642.72
A44: 99060200 - 28 | B44: 42 | C44: 91 | D44: un | E44: Broca aço rápido 6 mm sem carbono | P44: 8 | Q44: 12.2 | X44: 7.39 | Z44: 6.54 | BD44: 6.8 | CC44: =AVERAGE(BD44,Z44,X44,P44) -> 7.1825 | CD44: 7.18 | CE44: 653.38
A45: 99060200 - 29 | B45: 43 | C45: 78 | D45: un | E45: Broca aço rápido 6,5 mm sem carbono | P45: 9 | Q45: 14.1 | Z45: 13.1 | AB45: 11.02 | CC45: =AVERAGE(Z45:AB45,P45:Q45) -> 11.805 | CD45: 11.81 | CE45: 921.18
A46: 99060200 - 30 | B46: 44 | C46: 88 | D46: un | E46: Broca aço rápido 7 mm sem carbono | P46: 12 | Q46: 16.12 | AB46: 15.62 | AK46: 12.9 | CC46: =AVERAGE(AK46,AB46,P46:Q46) -> 14.16 | CD46: 14.16 | CE46: 1246.08
A47: 99060200 - 31 | B47: 45 | C47: 93 | D47: un | E47: Broca aço rápido 8 mm sem carbono | P47: 13 | Q47: 22.74 | AG47: 16 | BG47: 15.23 | CC47: =AVERAGE(BG47,AG47,P47:Q47) -> 16.7425 | CD47: 16.74 | CE47: 1556.82
A48: 99060200 - 32 | B48: 46 | C48: 81 | D48: un | E48: Broca aço rápido 9 mm sem carbono | P48: 20 | Q48: 27.05 | Z48: 16.47 | AB48: 16.61 | CC48: =AVERAGE(Z48:AB48,P48) -> 17.69333333 | CD48: 17.69 | CE48: 1432.89
A49: 99060199 - 8 | B49: 47 | C49: 52 | D49: un | E49: BROCA CONCRETO SDS PLUS 12 X 210MM | P49: 20 | X49: 22.99 | Z49: 18.3 | AB49: 17.51 | CC49: =AVERAGE(X49:AB49,P49) -> 19.7 | CD49: 19.7 | CE49: 1024.4
A50: 990607981 - 1 | B50: 48 | C50: 53 | D50: un | E50: Broca SDS 10mm | P50: 10 | Z50: 16.1 | AA50: 10.09 | AB50: 16 | CC50: =AVERAGE(P50:AB50) -> 13.0475 | CD50: 13.05 | CE50: 691.65
A51: 990607982 - 1 | B51: 49 | C51: 51 | D51: un | E51: Broca SDS 6mm | P51: 14 | Z51: 11.5 | AA51: 10.76 | AB51: 10.44 | CC51: =AVERAGE(P51:AB51) -> 11.675 | CD51: 11.68 | CE51: 595.68
A52: 990607983 - 1 | B52: 50 | C52: 30 | D52: un | E52: Broca sds mad/alvenaria 110 x 4,00mm | X52: 18.29 | BD52: 10.92 | BG52: 11.62 | CC52: =AVERAGE(BD52:BG52,X52) -> 13.61 | CD52: 13.61 | CE52: 408.3
A53: 990607984 - 1 | B53: 51 | C53: 30 | D53: un | E53: Broca sds mad/alvenaria 110 x 5,00mm | Z53: 10.33 | AA53: 10.9 | AB53: 12.11 | CC53: =AVERAGE(Z53:AB53) -> 11.11333333 | CD53: 11.11 | CE53: 333.3
A54: 990607985 - 1 | B54: 52 | C54: 30 | D54: un | E54: Broca sds mad/alvenaria 300 x 10mm | X54: 11.99 | AK54: 19.9 | AY54: 17.96 | CC54: =AVERAGE(AY54,AK54,X54) -> 16.61666667 | CD54: 16.62 | CE54: 498.6
A55: 99060199 - 6 | B55: 53 | C55: 30 | D55: un | E55: Broca SDS PLUS 10 x 250mm para concreto. | P55: 12 | AK55: 61.9 | AY55: 68.31 | CC55: =AVERAGE(AY55,AK55) -> 65.105 | CD55: 65.11 | CE55: 1953.3
A56: 99060199 - 7 | B56: 54 | C56: 30 | D56: un | E56: Broca SDS PLUS 18 x 310mm para concreto. | P56: 420 | X56: 29.59 | AO56: 34.05 | CC56: =AVERAGE(AO56,X56) -> 31.82 | CD56: 31.82 | CE56: 954.6
A57: 99060199 -10 | B57: 55 | C57: 30 | D57: un | E57: BROCA SDS PLUS 6 X 50 X 110MM | P57: 14 | Z57: 34.85 | AA57: 23.79 | AB57: 33.45 | CC57: =AVERAGE(Z57:AB57) -> 30.69666667 | CD57: 30.7 | CE57: 921
A58: 99060199 - 9 | B58: 56 | C58: 30 | D58: un | E58: BROCA SDS PLUS 6,00 X 160 IR | P58: 12 | X58: 8.29 | AK58: 9.89 | AN58: 11.93 | CC58: =AVERAGE(AK58:AN58,X58,P58) -> 10.5275 | CD58: 10.53 | CE58: 315.9
A59: 99060199 - 12 | B59: 57 | C59: 30 | D59: un | E59: BROCA SDS PLUS 8 X 100 X 160MM | P59: 13 | AA59: 8.19 | AB59: 6.69 | AY59: 7.11 | CC59: =AVERAGE(Q59:CB59) -> 7.33 | CD59: 7.33 | CE59: 219.9
A60: 99060199 - 11 | B60: 58 | C60: 30 | D60: un | E60: BROCA SDS PLUS 8,00 X 160 IR | P60: 11 | Y60: 12.89 | AK60: 10.9 | CC60: =AVERAGE(F60:CB60) -> 11.59666667 | CD60: 11.6 | CE60: 348
A61: 99060199 - 13 | B61: 59 | C61: 30 | D61: un | E61: BROCA SDS PLUS CONCRETO 7 X 110MM | P61: 8 | X61: 20.99 | AK61: 10.9 | CC61: =AVERAGE(Y61:CB61,F61:W61) -> 9.45 | CD61: 9.45 | CE61: 283.5
A62: 990607986 - 1 | B62: 60 | C62: 69 | D62: un | E62: BROXA (TRINCHA) | P62: 20 | X62: 7.18 | AK62: 7.79 | CC62: =AVERAGE(Q62:CB62) -> 7.485 | CD62: 7.49 | CE62: 516.81
A63: 990607987 - 1 | B63: 61 | C63: 68 | D63: un | E63: BROXA RETANGULAR 160X60MM | P63: 13 | Z63: 15.9 | AA63: 19.9 | CC63: =AVERAGE(F63:CB63) -> 16.26666667 | CD63: 16.27 | CE63: 1106.36
B64: 62 | C64: 38 | D64: un | E64: Cabo carregador para bateria, com voltagem de 1200amp, compatível para carro, caminhão e moto, com, no mínimo, 2,5 mts de comprimento, contendo 02 cabos, sendo preto, para o polo negativo, e vermelho para o polo positivo, e 4 garras, tipo jacaré, revestidas de cobre. Acompanha bolsa organizadora. | P64: 60 | Z64: 56.9 | AA64: 69 | CC64: =AVERAGE(Z64:AA64,P64) -> 61.96666667 | CD64: 61.97 | CE64: 2354.86
A65: 990607988 - 1 | B65: 63 | C65: 29 | D65: un | E65: CAÇAMBA P/PINTURA 15L | P65: 43 | X65: 44.9 | AV65: 42.5 | BD65: 36.59 | CC65: =AVERAGE(F65:CB65) -> 41.7475 | CD65: 41.75 | CE65: 1210.75
B66: 64 | C66: 82 | D66: un | E66: Cadeado de Latão com 2 Chaves 20mm | O66: 9.47 | P66: 19 | Z66: 14.9 | AA66: 12.9 | AB66: 17.9 | CC66: =AVERAGE(AC66:CB66,Q66:AA66,F66:O66) -> 12.42333333 | CD66: 12.42 | CE66: 1018.44
B67: 65 | C67: 70 | D67: un | E67: Cadeado de Latão com 2 Chaves 25mm | O67: 11.02 | P67: 23 | Z67: 15.5 | AA67: 16.59 | AB67: 19.9 | CC67: =AVERAGE(AC67:CB67,Q67:AA67,F67:O67) -> 14.37 | CD67: 14.37 | CE67: 1005.9
B68: 66 | C68: 72 | D68: un | E68: Cadeado de Latão com 2 Chaves 30mm | O68: 13.14 | P68: 25 | Z68: 18.81 | AA68: 23.84 | AB68: 24.9 | CC68: =AVERAGE(P68:CB68,F68:N68) -> 23.1375 | CD68: =ROUND(CC68,2) -> 23.14 | CE68: =CD68*C68 -> 1666.08
B69: 67 | C69: 60 | D69: un | E69: Cadeado de Latão com 2 Chaves 35mm | O69: 17.6 | P69: 47 | Z69: 24.17 | AB69: 32.9 | CC69: =AVERAGE(Q69:CB69,F69:O69) -> 24.89 | CD69: 24.89 | CE69: 1493.4
B70: 68 | C70: 60 | D70: un | E70: Cadeado de Latão com 2 Chaves 40mm | O70: 19.85 | P70: 42 | Z70: 24.22 | AA70: 29.89 | AB70: 32.9 | CC70: =AVERAGE(Q70:CB70,O70) -> 26.715 | CD70: 26.72 | CE70: 1603.2
B71: 69 | C71: 82 | D71: un | E71: Cadeado de Latão com 2 Chaves 45mm | O71: 24.2 | P71: 50 | Z71: 32.25 | AA71: 27.51 | AB71: 37.9 | CC71: =AVERAGE(Q71:CB71,F71:O71) -> 30.465 | CD71: 30.47 | CE71: 2498.54
B72: 70 | C72: 84 | D72: un | E72: Cadeado de Latão com 2 Chaves 50mm | O72: 28.48 | P72: 48 | Z72: 36.8 | AA72: 38.69 | AB72: 48 | CC72: =AVERAGE(AC72:CB72,Q72:AA72,O72) -> 34.65666667 | CD72: 34.66 | CE72: 2911.44
B73: 71 | C73: 65 | D73: un | E73: Cadeado com Segredo de Latão Tamanho 40 | Y73: 27.69 | Z73: 45 | AO73: 29.56 | CC73: =AVERAGE(F73:CB73) -> 34.08333333 | CD73: 34.08 | CE73: 2215.2
B74: 72 | C74: 69 | D74: un | E74: Cadeado de Latão com 2 Chaves 60mm | O74: 47.62 | Z74: 57.36 | AA74: 45 | AB74: 67 | CC74: =AVERAGE(F74:CB74) -> 54.245 | CD74: 54.25 | CE74: 3743.25
B75: 73 | C75: 56 | D75: un | E75: Cadeado Haste Longa de Latão com 2 Chaves 20mm | X75: 44.5 | Z75: 42.74 | CC75: =AVERAGE(F75:CB75) -> 43.62 | CD75: 43.62 | CE75: 2442.72
B76: 74 | C76: 50 | D76: un | E76: Corrente de aço para cadeado 5 mm x 40 cm. | Z76: 16.77 | AB76: 16.18 | BR76: 12.9 | CC76: =AVERAGE(F76:CB76) -> 15.28333333 | CD76: 15.28 | CE76: 764
B77: 75 | C77: 57 | D77: un | E77: Cadeado Haste Longa de Latão com 2 Chaves 30/75mm | O77: 16.46 | P77: 31 | AS77: 20.69 | AT77: 19.15 | CC77: =AVERAGE(Q77:BH77,F77:O77) -> 18.76666667 | CD77: 18.77 | CE77: 1069.89
B78: 76 | C78: 52 | D78: un | E78: Cadeado Haste Longa de Latão com 2 Chaves 35/70mm | O78: 21.37 | P78: 47 | Y78: 24.19 | AB78: 39.82 | AV78: 40.5 | CC78: =AVERAGE(Q78:CB78,F78:O78) -> 31.47 | CD78: 31.47 | CE78: 1636.44
B79: 77 | C79: 50 | D79: un | E79: Esmerilhadeira Bateria 4.1/2 Pol. 8.500 Rpm | O79: 28.76 | AY79: 1177.81 | AZ79: 1489 | CC79: =AVERAGE(P79:CB79) -> 1333.405 | CD79: 1333.41 | CE79: 66670.5
B80: 78 | C80: 53 | D80: un | E80: Cadeado Haste Longa de Latão com 2 Chaves 45/50mm | O80: 34.45 | X80: 47.99 | Z80: 59.91 | AR80: 57.5 | CC80: =AVERAGE(F80:BH80) -> 49.9625 | CD80: 49.96 | CE80: 2647.88
B81: 79 | C81: 64 | D81: un | E81: Cadeado Haste Longa de Latão com 2 Chaves 35/75mm | AE81: 42.71 | AS81: 32.19 | AU81: 35.99 | CC81: =AVERAGE(F81:BH81) -> 36.96333333 | CD81: 36.96 | CE81: 2365.44
B82: 80 | C82: 432 | D82: m | E82: Corrente de aço soldada 8 mm. | AA82: 35.9 | AB82: 38.009 | AR82: 58.73 | CC82: =AVERAGE(F82:BH82) -> 44.213 | CD82: 44.21 | CE82: 19098.72
B83: 81 | C83: 59 | D83: un | E83: Cadeado Haste Longa de Latão com 2 Chaves 45/70mm | T83: 49.9 | AA83: 53.7 | AU83: 57.99 | CC83: =AVERAGE(F83:CB83) -> 53.86333333 | CD83: 53.86 | CE83: 3177.74
B84: 82 | C84: 50 | D84: un | E84: Caixa Metálica para Ferramentas, com 5 Gavetas, 50 x 19 x 20 cm | O84: 102.21 | Y84: 119.99 | AA84: 125.16 | AY84: 138.51 | CC84: =AVERAGE(F84:CB84) -> 121.4675 | CD84: 121.47 | CE84: 6073.5
A85: 990605406 - 1 | B85: 83 | C85: 11 | D85: un | E85: Calibrador de pneus - modelo caneta – 10/150 PSI – graduação de 2 em 2 PSI nos 02 lados da régua - cabeçote em zamac, régua de alumínio, corpo de latão cromado | X85: 71.9 | Y85: 50.99 | Z85: 55.71 | CC85: =AVERAGE(F85:CB85) -> 59.53333333 | CD85: 59.53 | CE85: 654.83
A86: 990605406 - 2 | B86: 84 | C86: 11 | D86: un | E86: Calibrador de pneus ar/água – modelo caneta – 10/50 PSI - graduação de 1 em 1 PSI nos 04 lados da régua - cabeçote em zamac, régua de plástico, tubo de latão cromado | Z86: 19.98 | AA86: 31.9 | AB86: 24.12 | CC86: =AVERAGE(P86:CB86) -> 25.33333333 | CD86: 25.33 | CE86: 278.63
A87: 38012051 - 3 | B87: 85 | C87: 83 | D87: un | E87: Carrinho de mão, 01 roda, chassi e braço metálicos, caçamba metálica funda com capacidade mínima de 60 litros, completo. | O87: 90 | Z87: 181.01 | AA87: 207.41 | AB87: 152.91 | CC87: =AVERAGE(P87:CB87) -> 180.4433333 | CD87: 180.44 | CE87: 14976.52
B88: 86 | C88: 6 | D88: un | E88: Carrinho Para Cargas 350kg com 02 rodas, Roda: Pneu Câmara e rolete 3,25/8"PC; Capacidade de carga: 350 KG ; Pintura a pó na cor azul; Roda PC 3 com rolete; Altura x Largura: 57 cm x 28 cm; Materiais da carrinho: Ferro | Z88: 366.86 | AI88: 342.62 | AR88: 234.9 | CC88: =AVERAGE(F88:CB88) -> 314.7933333 | CD88: 314.79 | CE88: 1888.74
B89: 87 | C89: 2 | D89: un | E89: Carrinho para transporte pesado fabricado com assoalho de chapa de aço carbono, com sistema 5ª roda, dotado de cabo de tração em forma da “T” com articulação. Possui capacidade para 800 Kg, 4 rodas com rolete maciças de 300 x 8”, sendo 2 montadas no eixo e 2 com freio montadas na “5ª roda”. Medindo 150 cm de comprimento, 80 cm de largura e 45 cm de altura do chão à plataforma, o cabo possui 100 cm de altura. Pintura epóxi. Medidas aproximadas 150 x 80 x 45 cm (CxLxA),Peso: 60 Kg, Aço carbono | X89: 2299.9 | AF89: 2398 | AH89: 1961.52 | CC89: =AVERAGE(F89:BH89) -> 2219.806667 | CD89: 2219.81 | CE89: 4439.62
A90: 990605407 - 1 | B90: 88 | C90: 370 | D90: un | E90: Catraca para esticar arame liso ovalado de bitola mínima 2,2 x 2,7 mm - dimensão mínima da catraca: 42 x 55 x 58 mm | P90: 14 | Y90: 8.19 | AA90: 10.13 | AB90: 9.9 | CC90: =AVERAGE(F90:BH90) -> 10.555 | CD90: 10.56 | CE90: 3907.2
B91: 89 | C91: 43 | D91: un | E91: cavadeira reta forjada nº10 com cabo de aproximadamente 1,50m | P91: 60 | Y91: 64.99 | Z91: 48.99 | AR91: 51.89 | CC91: =AVERAGE(F91:BH91) -> 56.4675 | CD91: 56.47 | CE91: 2428.21
A92: 990605408 - 1 | B92: 90 | C92: 39 | D92: un | E92: Chave canhão longa 10 mm | O92: 13.84 | P92: 30 | Z92: 26.88 | CC92: =AVERAGE(P92:CB92,F92:N92) -> 28.44 | CD92: 28.44 | CE92: 1109.16
A93: 990605408 - 2 | B93: 91 | C93: 39 | D93: un | E93: Chave canhão longa 11 mm | O93: 13.81 | P93: 30 | Z93: 29.24 | AA93: 24.78 | CC93: =AVERAGE(P93:CB93,F93:N93) -> 28.00666667 | CD93: 28.01 | CE93: 1092.39
A94: 990605408 - 3 | B94: 92 | C94: 39 | D94: un | E94: Chave canhão longa 12 mm | O94: 14.85 | P94: 33 | Z94: 16.11 | CC94: =AVERAGE(Q94:CB94,F94:O94) -> 15.48 | CD94: 15.48 | CE94: 603.72
A95: 990605408 - 4 | B95: 93 | C95: 39 | D95: un | E95: Chave canhão longa 13 mm | O95: 14.75 | P95: 60 | Z95: 16.11 | CC95: =AVERAGE(Q95:CB95,F95:O95) -> 15.43 | CD95: 15.43 | CE95: 601.77
A96: 990605408 - 5 | B96: 94 | C96: 39 | D96: un | E96: Chave canhão longa 6 mm | O96: 12.92 | P96: 30 | Y96: 15.34 | AO96: 17.74 | AR96: 55.5 | CC96: =AVERAGE(AS96:CB96,Q96:AQ96,F96:O96) -> 15.33333333 | CD96: 15.33 | CE96: 597.87
A97: 990605408 - 6 | B97: 95 | C97: 39 | D97: un | E97: Chave canhão longa 7 mm | O97: 13.5 | P97: 29 | AS97: 15.39 | CC97: =AVERAGE(Q97:CB97,F97:O97) -> 14.445 | CD97: 14.45 | CE97: 563.55
A98: 990605408 - 7 | B98: 96 | C98: 39 | D98: un | E98: Chave canhão longa 8 mm | O98: 13.58 | P98: 30 | Z98: 16.11 | AS98: 15.39 | CC98: =AVERAGE(Q98:CB98,F98:O98) -> 15.02666667 | CD98: 15.03 | CE98: 586.17
A99: 990605408 - 8 | B99: 97 | C99: 29 | D99: un | E99: Chave canhão longa 9 mm | O99: 13.59 | P99: 32 | X99: 26.91 | AK99: 28.9 | CC99: =AVERAGE(P99:CB99,F99:N99) -> 29.27 | CD99: 29.27 | CE99: 848.83
A100: 990607990 - 1 | B100: 98 | C100: 27 | D100: un | E100: Chave de Mangueira Dupla em Latão Utilização: em conexões de engate rápido tipo STORZ de 1.1/2” e 2.1/2 | BN100: 14.21 | BO100: 13.67 | CB100: 11.37 | CC100: =AVERAGE(F100:CB100) -> 13.08333333 | CD100: 13.08 | CE100: 353.16
A101: 990604474 - 3 | B101: 99 | C101: 73 | D101: un | E101: CHAVE FENDA FOSFATIZADA EMBORRACHADA 3/16X6 CRV | P101: 12 | AK101: 9.59 | BG101: 9.16 | CC101: =AVERAGE(F101:CB101) -> 10.25 | CD101: 10.25 | CE101: 748.25
B102: 100 | C102: 24 | D102: un | E102: Chave Parafusadeira de Impacto Pneumática 1Pol. Eixo Estendido 2.400N.m com Gatilho Interno + Adaptador 1 x 3/4 Pol | X102: 1229.9 | AR102: 1298 | AY102: 1975.05 | CC102: =AVERAGE(AY102,AR102,X102) -> 1500.983333 | CD102: 1500.98 | CE102: 36023.52
B103: 101 | C103: 24 | D103: un | E103: Chave Parafusadeira de Impacto Pneumática com Eixo de 3/4 Pol. Curta 1.200 N.m | X103: 599 | BH103: 720.41 | BK103: 1093.26 | CC103: =AVERAGE(BH103,X103) -> 659.705 | CD103: 659.71 | CE103: 15833.04
A104: 990605905 - 2 | B104: 102 | C104: 73 | D104: un | E104: CHAVE PHILLIPS FOSFATIZADA EMBORRACHADA 3/16X6 CRV | P104: 12 | Z104: 15 | AA104: 16.56 | AB104: 10.55 | CC104: =AVERAGE(F104:CB104) -> 13.5275 | CD104: 13.53 | CE104: 987.69
A105: 990607993 - 1 | B105: 103 | C105: 49 | D105: un | E105: CHAVE TESTE CARTELA ou CHAVE DISMA | P105: 8 | Z105: 8.13 | AA105: 8.9 | AB105: 9.93 | CC105: =AVERAGE(F105:CB105) -> 8.74 | CD105: 8.74 | CE105: 428.26
A106: 990607994 - 1 | B106: 104 | C106: 97 | D106: un | E106: Chave teste PARA REDE 220V | P106: 25 | X106: 9.31 | Z106: 15.18 | CC106: =AVERAGE(Q106:CB106) -> 12.245 | CD106: 12.25 | CE106: 1188.25
B107: 105 | C107: 1200 | D107: un | E107: Chumbador mecânico Tipo PBA Zincado (Parabolt) – com parafuso, arruela, jaqueta e cone - 1/4"x1.3/4" | F107: 0.77 | G107: 0.47 | H107: 0.63 | I107: 0.68 | J107: 1.24 | AR107: 1.1053 | CC107: =AVERAGE(AS107:CB107,K107:AQ107,F107:I107) -> 0.6375 | CD107: 0.64 | CE107: 768
B108: 106 | C108: 1200 | D108: un | E108: Chumbador mecânico Tipo PBA Zincado (Parabolt) – com parafuso, arruela, jaqueta e cone - 3/4"x8" | F108: 11.56 | G108: 9.69 | I108: 11.2 | CC108: =AVERAGE(F108:CB108) -> 10.81666667 | CD108: 10.82 | CE108: 12984
B109: 107 | C109: 1200 | D109: un | E109: Chumbador mecânico Tipo PBA Zincado (Parabolt) – com parafuso, arruela, jaqueta e cone - 3/8"x4" | F109: 1.32 | I109: 1.47 | CC109: =AVERAGE(F109:CB109) -> 1.395 | CD109: 1.4 | CE109: 1680
B110: 108 | C110: 1200 | D110: un | E110: Chumbador mecânico Tipo PBA Zincado (Parabolt) – com parafuso, arruela, jaqueta e cone - 5/16"x3" | F110: 0.92 | G110: 0.6981 | H110: 0.7 | I110: 0.96 | J110: 1.38 | CC110: =AVERAGE(F110:I110) -> 0.819525 | CD110: 0.82 | CE110: 984
B111: 109 | C111: 1200 | D111: un | E111: Chumbador mecânico Tipo PBA Zincado (Parabolt) – com parafuso, arruela, jaqueta e cone - 1/4"x2" | F111: 0.84 | G111: 0.4392 | H111: 0.47 | I111: 0.64 | K111: 1.99 | Z111: 1.28 | CC111: =AVERAGE(G111:I111) -> 0.5164 | CD111: 0.52 | CE111: 624
B112: 110 | C112: 1200 | D112: un | E112: Chumbador mecânico Tipo PBA Zincado (Parabolt) – com parafuso, arruela, jaqueta e cone - 5/16"x2.1/4" | F112: 0.76 | G112: 0.5765 | I112: 0.79 | K112: 2.25 | CC112: =AVERAGE(F112:I112) -> 0.7088333333 | CD112: 0.71 | CE112: 852
B113: 111 | C113: 1200 | D113: un | E113: Chumbador mecânico Tipo PBA Zincado (Parabolt) – com parafuso, arruela, jaqueta e cone - 3/8"x5" | F113: 1.57 | G113: 1.18 | I113: 1.71 | AE113: 2.6 | CC113: =AVERAGE(F113:I113) -> 1.486666667 | CD113: 1.49 | CE113: 1788
B114: 112 | C114: 1200 | D114: un | E114: Chumbador mecânico Tipo PBA Zincado (Parabolt) – com parafuso, arruela, jaqueta e cone - 1/2"x4" | F114: 2.16 | G114: 1.92 | H114: 2.48 | I114: 2.39 | J114: 3.92 | R114: 2.69 | AR114: 3.7772 | CC114: =AVERAGE(AR114,R114,F114:I114) -> 2.569533333 | CD114: 2.57 | CE114: 3084
B115: 113 | C115: 1200 | D115: un | E115: Chumbador mecânico Tipo PBA Zincado (Parabolt) – com parafuso, arruela, jaqueta e cone - 1/2"x7" | F115: 3.72 | G115: 3.5833 | I115: 4.14 | CC115: =AVERAGE(F115:I115) -> 3.814433333 | CD115: 3.81 | CE115: 4572
B116: 114 | C116: 1200 | D116: un | E116: Chumbador mecânico Tipo PBA Zincado (Parabolt) – com parafuso, arruela, jaqueta e cone - 3/4"x7" | F116: 9.19774 | G116: 8.3347 | H116: 6.6 | I116: 9.63 | CC116: =AVERAGE(F116:I116) -> 8.44061 | CD116: 8.44 | CE116: 10128
B117: 115 | C117: 1200 | D117: un | E117: Chumbador mecânico Tipo PBA Inox (Parabolt) – com parafuso, arruela, jaqueta e cone - 1/4"x1.3/4" | F117: 2.67 | G117: 0.47 | I117: 2.98 | CC117: =AVERAGE(I117,F117) -> 2.825 | CD117: 2.83 | CE117: 3396
B118: 116 | C118: 1200 | D118: un | E118: Chumbador mecânico Tipo PBA Inox (Parabolt) – com parafuso, arruela, jaqueta e cone - 1/4"x2" | F118: 2.6 | G118: 0.4392 | H118: 1.83 | I118: 3.11 | CC118: =AVERAGE(H118:I118,F118) -> 2.513333333 | CD118: 2.51 | CE118: 3012
B119: 117 | C119: 1200 | D119: un | E119: Chumbador mecânico Tipo PBA Inox (Parabolt) – com parafuso, arruela, jaqueta e cone - 5/16"x2.1/4" | F119: 3.9 | G119: 0.5765 | I119: 3.68 | CC119: =AVERAGE(H119:I119,F119) -> 3.79 | CD119: 3.79 | CE119: 4548
B120: 118 | C120: 1200 | D120: un | E120: Chumbador mecânico Tipo PBA Inox (Parabolt) – com parafuso, arruela, jaqueta e cone - 5/16"x3" | F120: 3.56 | G120: 0.6981 | I120: 4.42 | CC120: 3.99 | CD120: 3.99 | CE120: 4788
B121: 119 | C121: 1200 | D121: un | E121: Chumbador mecânico Tipo PBA Inox (Parabolt) – com parafuso, arruela, jaqueta e cone - 3/8"x5" | F121: 7.24 | G121: 1.1877 | I121: 8.2 | CC121: 7.72 | CD121: 7.72 | CE121: 9264
B122: 120 | C122: 1200 | D122: un | E122: Chumbador mecânico Tipo PBA Inox (Parabolt) – com parafuso, arruela, jaqueta e cone - 3/8"x4" | F122: 5.86 | I122: 6.7 | CC122: =AVERAGE(F122:I122) -> 6.28 | CD122: 6.28 | CE122: 7536
B123: 121 | C123: 1200 | D123: un | E123: Chumbador mecânico Tipo PBA Inox (Parabolt) – com parafuso, arruela, jaqueta e cone - 1/2"x4" | F123: 10.6 | G123: 6.07 | H123: 7.31 | I123: 11.86 | CC123: =AVERAGE(F123:CB123) -> 8.96 | CD123: 8.96 | CE123: 10752
B124: 122 | C124: 1200 | D124: un | E124: Chumbador mecânico Tipo PBA Inox (Parabolt) – com parafuso, arruela, jaqueta e cone - 1/2"x7" | F124: 17.16 | G124: 3.58 | I124: 19.29 | CC124: =AVERAGE(I124,F124) -> 18.225 | CD124: 18.23 | CE124: 21876
B125: 123 | C125: 1200 | D125: un | E125: Chumbador mecânico Tipo PBA Inox (Parabolt) – com parafuso, arruela, jaqueta e cone - 3/4"x7" | F125: 48.52 | G125: 8.33 | I125: 54.16 | CC125: =AVERAGE(I125,F125) -> 51.34 | CD125: 51.34 | CE125: 61608
B126: 124 | C126: 1200 | D126: un | E126: Chumbador mecânico Tipo PBA Inox (Parabolt) – com parafuso, arruela, jaqueta e cone - 3/4"x8" | F126: 55.32 | G126: 20.6856 | I126: 61.74 | CC126: =AVERAGE(I126,F126) -> 58.53 | CD126: 58.53 | CE126: 70236
B127: 125 | C127: 1200 | D127: un | E127: Chumbador mecânico Tipo CBA Zincado (Parabolt) – com parafuso, arruela, jaqueta e cone - 1/4"x2" | F127: 0.88 | G127: 0.8452 | H127: 0.91 | I127: 1.12 | L127: 1.83 | Z127: 2.49 | CC127: =AVERAGE(F127:I127) -> 0.9388 | CD127: 0.94 | CE127: 1128
B128: 126 | C128: 1200 | D128: un | E128: Chumbador mecânico Tipo CBA Zincado (Parabolt) – com parafuso, arruela, jaqueta e cone - 5/16"x2.1/4" | F128: 1.28 | G128: 1.4687 | I128: 1.7 | CC128: =AVERAGE(F128:I128) -> 1.4829 | CD128: 1.48 | CE128: 1776
B129: 127 | C129: 1200 | D129: un | E129: Chumbador mecânico Tipo CBA Zincado (Parabolt) – com parafuso, arruela, jaqueta e cone - 5/16"x3" | F129: 2.21 | G129: 2.1385 | I129: 2.5 | Z129: 3.77 | CC129: =AVERAGE(Z129,F129:I129) -> 2.654625 | CD129: 2.65 | CE129: 3180
B130: 128 | C130: 1200 | D130: un | E130: Chumbador mecânico Tipo CBA Zincado (Parabolt) – com parafuso, arruela, jaqueta e cone - 3/8"x4" | F130: 3.64 | G130: 2.53 | CC130: =AVERAGE(Z130,F130:I130) -> 3.085 | CD130: 3.09 | CE130: 3708
B131: 129 | C131: 1200 | D131: un | E131: Chumbador mecânico Tipo CBA Zincado (Parabolt) – com parafuso, arruela, jaqueta e cone - 1/2"x4" | F131: 6.82 | G131: 7.2144 | I131: 8.38 | CC131: =AVERAGE(F131:I131) -> 7.471466667 | CD131: 7.47 | CE131: 8964
B132: 130 | C132: 1200 | D132: un | E132: Chumbador mecânico Tipo CBA Inox (Parabolt) – com parafuso, arruela, jaqueta e cone - 1/4"x2" | F132: 6.74 | G132: 6.07 | I132: 5.54 | CC132: =AVERAGE(F132:I132) -> 6.116666667 | CD132: =ROUND(CC132,2) -> 6.12 | CE132: =CD132*C132 -> 7344
B133: 131 | C133: 1200 | D133: un | E133: Chumbador mecânico Tipo CBA Inox (Parabolt) – com parafuso, arruela, jaqueta e cone - 5/16"x2.1/4" | F133: 7.6 | G133: 9.0959 | I133: 8.5 | CC133: 8.398633333 | CD133: 8.4 | CE133: 10080
B134: 132 | C134: 1200 | D134: un | E134: Chumbador mecânico Tipo CBA Inox (Parabolt) – com parafuso, arruela, jaqueta e cone - 5/16"x3" | F134: 11.02 | G134: 23.54 | I134: 12.3 | CC134: =AVERAGE(I134,F134) -> 11.66 | CD134: 11.66 | CE134: 13992
B135: 133 | C135: 1200 | D135: un | E135: Chumbador mecânico Tipo CBA Inox (Parabolt) – com parafuso, arruela, jaqueta e cone - 1/2"x4" | F135: 27.3 | G135: 34.8569 | CC135: =AVERAGE(F135:G135) -> 31.07845 | CD135: 31.08 | CE135: 37296
B136: 134 | C136: 10 | D136: un | E136: Cintel P/ Maçarico De Corte Oxiacetileno Glp Com Carro Guia | X136: 139.9 | Z136: 115 | AL136: 139.97 | CC136: =AVERAGE(F136:AL136) -> 131.6233333 | CD136: 131.62 | CE136: 1316.2
A137: 10119016 - 1 | B137: 135 | C137: 64 | D137: un | E137: Colher de pedreiro 9" - em aço - cabo de madeira | O137: 8.9 | P137: 42 | Z137: 19.08 | AB137: 22.48 | AY137: 23.66 | CC137: =AVERAGE(R137:BH137) -> 21.74 | CD137: 21.74 | CE137: 1391.36
A138: 990610738 - 1 | B138: 136 | C138: 4 | D138: un | E138: Compactador de placa vibratória para utilização em reparos de tapa buraco asfáltico: Combustível: gasolina Potência do motor: 6,5hp ou maior Ciclo: 4 tempos Filtro de ar banhado à óleo embreagem centrífuga Com rodas e alças de elevação para facilitar o transporte Profundidade de compactações de 20 cm ou mais Sistema de partida manual Vibrações por minuto 4500 ou mais Peso de (60 à 70) kg Sem reservatório de água Os manuais deverão ser fornecidos em português | X138: 10900 | AY138: 9878.1 | CC138: =AVERAGE(F138:BO138) -> 10389.05 | CD138: 10389.05 | CE138: 41556.2
A139: 990606769 - 2 | B139: 137 | C139: 6 | D139: un | E139: COMPRESSOR DE AR Tensão: 220V – Monofásico Potência do motor: 2HP – 1,35kW Número do polos: 2 - Volume de reservatório: 100L | O139: 2526.79 | Z139: 3320.51 | AB139: 2679.29 | CC139: =AVERAGE(F139:BH139) -> 2842.196667 | CD139: 2842.2 | CE139: 17053.2
A140: 990605959 - 3 | B140: 138 | C140: 24 | D140: rl | E140: Corda polipropileno trançada 8 mm branca rolo com 200 m | Z140: 324.06 | AA140: 214.74 | AB140: 305.81 | CC140: =AVERAGE(Z140:AB140) -> 281.5366667 | CD140: 281.54 | CE140: 6756.96
A141: 990607998 - 1 | B141: 139 | C141: 134 | D141: un | E141: Corrente de aço para cadeado, medidas aproximadas: 5 mm x 40 cm | Z141: 12.99 | AB141: 16.18 | CC141: =AVERAGE(F141:BH141) -> 14.585 | CD141: 14.59 | CE141: 1955.06
B142: 140 | C142: 400 | D142: m | E142: Corrente polida 3/4" - 19mm - Elo curto e soldada. | Y142: 149.33 | Z142: 214.98 | AR142: 178.03 | CC142: =AVERAGE(F142:BH142) -> 180.78 | CD142: 180.78 | CE142: 72312
A143: 990607999 - 1 | B143: 141 | C143: 60 | D143: un | E143: Desempenadeira de plástico com espuma | P143: 22 | X143: 15.9 | AY143: 23.66 | CC143: =AVERAGE(F143:BK143) -> 20.52 | CD143: 20.52 | CE143: 1231.2
A144: 990608000 - 1 | B144: 142 | C144: 56 | D144: un | E144: Desempenadeira em aço dentada, medidas aproximadas 25 x 12 cm | Y144: 15.99 | Z144: 18.9 | AB144: 17.76 | CC144: =AVERAGE(F144:BH144) -> 17.55 | CD144: 17.55 | CE144: 982.8
A145: 990608001 - 1 | B145: 143 | C145: 56 | D145: un | E145: Desempenadeira plástica 18 x 30 cm - com borracha | AO145: 20.8 | AY145: 26.51 | AZ145: 24.4 | CC145: =AVERAGE(F145:BI145) -> 23.90333333 | CD145: 23.9 | CE145: 1338.4
A146: 10119021 - 1 | B146: 144 | C146: 57 | D146: un | E146: Desempenadeira plástica estriada – 14 x 27 cm | O146: 4.46 | X146: 7.1 | AE146: 3.5 | CC146: =AVERAGE(Y146:BJ146,F146:W146) -> 3.98 | CD146: 3.98 | CE146: 226.86
A147: 10119022 - 7 | B147: 145 | C147: 1840 | D147: un | E147: DISCO CORTE 4.1/2 115 X 1 MM | P147: 2.25 | Y147: 1.59 | AA147: 3.5 | CC147: =AVERAGE(AB147:BR147,F147:Z147) -> 1.92 | CD147: 1.92 | CE147: 3532.8
A148: 10101651 - 1 | B148: 146 | C148: 933 | D148: un | E148: Disco de corte 12" | P148: 28 | X148: 13.09 | Y148: 12.49 | CC148: =AVERAGE(Q148:BZ148,F148:O148) -> 12.79 | CD148: 12.79 | CE148: 11933.07
A149: 99060204 - 4 | B149: 147 | C149: 2333 | D149: un | E149: Disco de corte 7” | O149: 3.74 | P149: 10 | X149: 5.99 | CC149: =AVERAGE(Q149:BH149,F149:O149) -> 4.865 | CD149: 4.87 | CE149: 11361.71
A150: 990607028 - 2 | B150: 148 | C150: 725 | D150: un | E150: Disco de corte aço 115mm x 1,0mm x 22,23mm | O150: 1.33 | X150: 3.59 | AU150: 3.14 | CC150: =AVERAGE(P150:BH150,F150:N150) -> 3.365 | CD150: 3.37 | CE150: 2443.25
A151: 990610733 - 2 | B151: 149 | C151: 570 | D151: un | E151: Disco de corte Diamantado segmentado 350mm furo de 25,4 para asfalto e concreto | X151: 169.9 | Y151: 246.99 | AO151: 250.38 | CC151: =AVERAGE(F151:BH151) -> 222.4233333 | CD151: 222.42 | CE151: 126779.4
A152: 990607028 - 3 | B152: 150 | C152: 570 | D152: un | E152: Disco de corte Diamantado turbo 250mm furo de 25,4 para asfalto e concreto | X152: 134.9 | AR152: 126.46 | CC152: =AVERAGE(F152:BH152) -> 130.68 | CD152: 130.68 | CE152: 74487.6
A153: 99060205 - 3 | B153: 151 | C153: 1165 | D153: un | E153: Disco de desbaste 7” | O153: 10.94 | P153: 19 | BS153: 13.59 | CC153: =AVERAGE(F153:CB153) -> 14.51 | CD153: 14.51 | CE153: 16904.15
A154: 10117136 - 1 | B154: 152 | C154: 206 | D154: un | E154: Disco de serra 4.3/8" para madeira com 36 dentes | Z154: 8.26 | AZ154: 9.6 | BU154: 24.5 | CC154: =AVERAGE(BV154:CB154,F154:BT154) -> 8.93 | CD154: 8.93 | CE154: 1839.58
A155: 10117135 - 1 | B155: 153 | C155: 206 | D155: un | E155: Disco de serra 7.1/4" para madeira com 36 dentes | O155: 18.6 | X155: 23.9 | AA155: 23.99 | CC155: =AVERAGE(F155:CB155) -> 22.16333333 | CD155: 22.16 | CE155: 4564.96
A156: 990610733 - 5 | B156: 154 | C156: 420 | D156: un | E156: Disco diamantado de corte Segmentado, para asfalto e concreto, diâmetro externo de 350 mm e diâmetro do furo de 25,4 mm. | P156: 410 | Z156: 247 | AY156: 233.01 | BG156: 393.53 | CC156: =AVERAGE(Q156:CB156,F156:O156) -> 291.18 | CD156: 291.18 | CE156: 122295.6
A157: 990610733 - 3 | B157: 155 | C157: 570 | D157: un | E157: Disco diamantado segmentado 110 mm | O157: 12.69 | P157: 33 | X157: 17.09 | Z157: 15.19 | CC157: =AVERAGE(Q157:CB157,F157:O157) -> 14.99 | CD157: 14.99 | CE157: 8544.3
A158: 990610733 - 1 | B158: 156 | C158: 272 | D158: un | E158: Disco Diamantado segmentado de cortar tijolo refratário 4.3/8" x 3/4" - 110 x 20mm | Z158: 21.99 | AE158: 31 | BE158: 22.5 | CC158: =AVERAGE(F158:CB158) -> 25.16333333 | CD158: 25.16 | CE158: 6843.52
A159: 990610733 - 4 | B159: 157 | C159: 270 | D159: un | E159: Disco Diamantado segmentado para serra mármore 4” – Ø 110 mm – furo 20 mm | X159: 16.09 | Z159: 18.9 | AU159: 18.39 | CC159: =AVERAGE(F159:CB159) -> 17.79333333 | CD159: 17.79 | CE159: 4803.3
A160: 990608002 - 1 | B160: 158 | C160: 270 | D160: un | E160: Disco diamantado turbo 110 mm | O160: 7.1 | X160: 26.99 | Y160: 15.39 | AO160: 13.36 | CC160: =AVERAGE(Y160:CB160,P160:W160,F160:N160) -> 14.375 | CD160: 14.38 | CE160: 3882.6
A161: 10117187 - 1 | B161: 159 | C161: 265 | D161: un | E161: Disco Diamantado turbo de cortar tijolo refratário 4.3/8" x 3/4" - 110 x 20mm | X161: 14.9 | Z161: 20.27 | BD161: 21.99 | CC161: =AVERAGE(F161:CB161) -> 19.05333333 | CD161: 19.05 | CE161: 5048.25
A162: 10119024 - 1 | B162: 160 | C162: 265 | D162: un | E162: Disco Diamantado turbo para serra mármore 4” – Ø 110 mm – furo 20 mm | P162: 45 | X162: 14.9 | BD162: 11.6 | CC162: =AVERAGE(Q162:CB162) -> 13.25 | CD162: 13.25 | CE162: 3511.25
A163: 990605410 - 1 | B163: 161 | C163: 835 | D163: un | E163: Disco FLAP grão 50 4” | P163: 18 | X163: 10.49 | Z163: 12 | CC163: =AVERAGE(Q163:CB163) -> 11.245 | CD163: 11.25 | CE163: 9393.75
A164: 990605410 - 2 | B164: 162 | C164: 835 | D164: un | E164: Disco FLAP grão 50 7” | P164: 35 | X164: 20.99 | Z164: 28.88 | CC164: =AVERAGE(F164:CB164) -> 28.29 | CD164: 28.29 | CE164: 23622.15
A165: 990605410 - 3 | B165: 163 | C165: 585 | D165: un | E165: Disco FLAP grão 80 4” | P165: 18 | Z165: 6.99 | AB165: 7.9 | CC165: =AVERAGE(Q165:CB165) -> 7.445 | CD165: 7.45 | CE165: 4358.25
A166: 990605410 - 4 | B166: 164 | C166: 585 | D166: un | E166: Disco FLAP grão 80 7” | P166: 35 | Z166: 9.68 | AA166: 11.99 | AU166: 12.37 | CC166: =AVERAGE(Q166:CB166) -> 11.34666667 | CD166: 11.35 | CE166: 6639.75
A167: 990605411 - 1 | B167: 165 | C167: 324 | D167: un | E167: Disco HOOKIT 5" grão 100 | X167: 3.399 | Z167: 8.48 | AK167: 2.89 | CC167: =AVERAGE(AA167:CB167,F167:Y167) -> 3.1445 | CD167: 3.14 | CE167: 1017.36
A168: 990605411 - 2 | B168: 166 | C168: 324 | D168: un | E168: Disco HOOKIT 5" grão 120 | X168: 3.69 | AK168: 2.89 | AL168: 3.12 | CC168: =AVERAGE(F168:CB168) -> 3.233333333 | CD168: 3.23 | CE168: 1046.52
A169: 990605411 - 3 | B169: 167 | C169: 324 | D169: un | E169: Disco HOOKIT 5" grão 150 | X169: 3.79 | AB169: 2.49 | AK169: 3.29 | CC169: =AVERAGE(F169:CB169) -> 3.19 | CD169: 3.19 | CE169: 1033.56
A170: 990605411 - 4 | B170: 168 | C170: 324 | D170: un | E170: Disco HOOKIT 5" grão 320 | AK170: 3.19 | AL170: 3.97 | AS170: 3.09 | CC170: =AVERAGE(F170:CB170) -> 3.416666667 | CD170: 3.42 | CE170: 1108.08
A171: 990605411 - 5 | B171: 169 | C171: 324 | D171: un | E171: Disco HOOKIT 5" grão 400 | AK171: 2.39 | AL171: 3.97 | AM171: 5.5 | CC171: =AVERAGE(AN171:CB171,F171:AL171) -> 3.18 | CD171: 3.18 | CE171: 1030.32
A172: 990605411 - 6 | B172: 170 | C172: 324 | D172: un | E172: Disco HOOKIT 5" grão 80 | Y172: 2.89 | AK172: 2.89 | AL172: 4.34 | CC172: =AVERAGE(AM172:CB172,F172:AK172) -> 2.89 | CD172: 2.89 | CE172: 936.36
A173: 990605412 - 1 | B173: 171 | C173: 96 | D173: kg | E173: Eletrodos 46 x 2.5 | P173: 28 | AO173: 35.15 | AV173: 63.5 | CC173: =AVERAGE(AW173:CB173,F173:AU173) -> 31.575 | CD173: 31.58 | CE173: 3031.68
A174: 990605412 - 2 | B174: 172 | C174: 76 | D174: kg | E174: Eletrodos 46 x 3.25 | P174: 24 | W174: 36.7 | AV174: 29.5 | CC174: =AVERAGE(F174:CB174) -> 30.06666667 | CD174: 30.07 | CE174: 2285.32
A175: 990605412 - 3 | B175: 173 | C175: 71 | D175: kg | E175: Eletrodos 48 x 2.5 | P175: 28 | AR175: 30.78 | CC175: =AVERAGE(F175:CB175) -> 29.39 | CD175: 29.39 | CE175: 2086.69
A176: 990605412 - 4 | B176: 174 | C176: 71 | D176: kg | E176: Eletrodos 48 x 3.25 | P176: 29 | X176: 39.99 | CC176: =AVERAGE(F176:CB176) -> 34.495 | CD176: 34.5 | CE176: 2449.5
A177: 990608083 - 1 | B177: 175 | C177: 358 | D177: un | E177: Engate Rápido 1/2-3/4 Com Adaptador Para Mangueira 1/2 | O177: 1.84 | AA177: 19.9 | AB177: 29.9 | CC177: =AVERAGE(P177:CB177,F177:N177) -> 24.9 | CD177: 24.9 | CE177: 8914.2
B178: 176 | C178: 35 | D178: un | E178: Enrolador de mangueira 1/2" até 55 metros, com rodinhas | X178: 119.9 | AA178: 154.9 | BZ178: 205.2 | CC178: =AVERAGE(F178:CB178) -> 160 | CD178: 160 | CE178: 5600
B179: 177 | C179: 42 | D179: un | E179: Enxada Sacho com 1 ponta (Sacho coração) com cabo de 1,20m | X179: 55.9 | AC179: 34.9 | AS179: 25.69 | CC179: =AVERAGE(Y179:CB179,F179:W179) -> 30.295 | CD179: 30.3 | CE179: 1272.6
B180: 178 | C180: 41 | D180: un | E180: Enxada Sacho com 1 ponta (Sacho coração) com cabo de 60cm | X180: 36.72 | AA180: 34.23 | CC180: =AVERAGE(F180:CB180) -> 35.475 | CD180: 35.48 | CE180: 1454.68
B181: 179 | C181: 40 | D181: un | E181: Enxada Sacho com 2 pontas com cabo de 1,20m | AA181: 52.38 | AC181: 33.85 | BZ181: 53.1 | CC181: 46.44333333 | CD181: 46.44 | CE181: 1857.6
B182: 180 | C182: 40 | D182: un | E182: Enxada Sacho com 2 pontas com cabo de 60cm | X182: 49.9 | AC182: 31.9 | BZ182: 47.4 | CC182: 43.06666667 | CD182: 43.07 | CE182: 1722.8
A183: 10106912 - 2 | B183: 181 | C183: 180 | D183: un | E183: Enxada sul olho redondo 19 cm - com cabo de madeira 130 cm | Y183: 46.99 | BL183: 46.09 | BS183: 46.31 | CC183: 46.46333333 | CD183: 46.46 | CE183: 8362.8
A184: 10119026 - 6 | B184: 182 | C184: 34 | D184: un | E184: Escada alumínio extensiva até 5 m mínimo 30 degraus suporte 150 kg peso máximo 10 kg | AI184: 813.93 | AZ184: 817.31 | BD184: 699.9 | CC184: 777.0466667 | CD184: 777.05 | CE184: 26419.7
A185: 10119026 - 5 | B185: 183 | C185: 54 | D185: un | E185: ESCADA ALUMÍNIO MÍNIMO 5 DEGRAUS suporte 100Kg peso máximo 3,5 Kg | X185: 139.9 | AA185: 147 | AB185: 134.9 | CC185: 140.6 | CD185: 140.6 | CE185: 7592.4
A186: 10119026 - 7 | B186: 184 | C186: 38 | D186: un | E186: Escada extensiva de fibra e degraus em aluminio 22X37 degraus 6,60 x 11,10 metros (aproximado) carga de trabalho minimo 120kg | X186: 2099 | Y186: 1236.99 | AY186: 1766.91 | CC186: 1700.966667 | CD186: 1700.97 | CE186: 64636.86
B187: 185 | C187: 144 | D187: un | E187: esguicho metalico para jardim tipo pistola com engate rapido de 1/2" | P187: 48 | X187: 76.9 | Z187: 41.65 | AI187: 127.94 | CC187: =AVERAGE(AJ187:CB187,F187:AH187) -> 55.51666667 | CD187: 55.52 | CE187: 7994.88
B188: 186 | C188: 139 | D188: un | E188: esguicho plastico reforçado para jardim tipo pistola com minimo 5 funções e com engate rapido de 1/2" | P188: 130 | X188: 49.9 | Z188: 41.9 | CC188: =AVERAGE(Q188:CB188,F188:O188) -> 45.9 | CD188: 45.9 | CE188: 6380.1
A189: 990606756 - 4 | B189: 187 | C189: 26 | D189: un | E189: ESMERILHADEIRA ANGULAR 4.1/2 EAV860 - 860W 220V | P189: 430 | X189: 268 | AC189: 289.9 | BF189: 329.99 | CC189: =AVERAGE(Q189:CB189,F189:O189) -> 295.9633333 | CD189: 295.96 | CE189: 7694.96
A190: 990607221 - 2 | B190: 188 | C190: 130 | D190: un | E190: Espátula Metálica Rígida 10cm Com Cabo de Madeira | P190: 18 | AK190: 12.9 | AS190: 10.99 | BS190: 11.39 | CC190: =AVERAGE(F190:CB190) -> 13.32 | CD190: 13.32 | CE190: 1731.6
A191: 38012134 - 4 | B191: 189 | C191: 64 | D191: un | E191: ESQUADRO 12 POL / 304 MM CABO ALUMINIO | O191: 16.44 | P191: 43 | Z191: 37.58 | AA191: 36.9 | CC191: =AVERAGE(P191:CB191) -> 39.16 | CD191: 39.16 | CE191: 2506.24
B192: 190 | C192: 58 | D192: un | E192: Facão Mato 16 Polegadas com Bainha em Couro Reforçada | P192: 65 | Z192: 43.17 | AO192: 149.28 | CC192: =AVERAGE(Z192,P192) -> 54.085 | CD192: 54.09 | CE192: 3137.22
A193: 990605414 - 1 | B193: 191 | C193: 36 | D193: tb | E193: Fio de estanho para solda - 1 mm x 25 gr | P193: 19 | X193: 12.99 | Z193: 13 | AB193: 15.23 | CC193: =AVERAGE(F193:CB193) -> 15.055 | CD193: 15.06 | CE193: 542.16
A194: 80017907 - 2 | B194: 192 | C194: 371 | D194: un | E194: Fita adesiva antiderrapante 50 mm X 5 m preta | P194: 24 | X194: 16.99 | Y194: 22.59 | CC194: =AVERAGE(F194:CB194) -> 21.19333333 | CD194: 21.19 | CE194: 7861.49
A195: 10103282 - 1 | B195: 193 | C195: 371 | D195: rl | E195: Fita isolante 19 mm x 10 metros - preta | P195: 4 | X195: 4.29 | Y195: 3.49 | CC195: =AVERAGE(F195:CB195) -> 3.926666667 | CD195: =ROUND(CC195,2) -> 3.93 | CE195: =CD195*C195 -> 1458.03
A196: 23100022 - 3 | B196: 194 | C196: 86 | D196: rl | E196: Fita isolante 19 mm x 10 metros - verde | Y196: 2.39 | AC196: 2.95 | AY196: 2.76 | CC196: =AVERAGE(F196:CB196) -> 2.7 | CD196: 2.7 | CE196: 232.2
B197: 195 | C197: 50 | D197: un | E197: foice, foicinha rocadeira para poda, curta, cabo 40cm | P197: 60 | AA197: 46.9 | AB197: 49.9 | CC197: =AVERAGE(F197:CB197) -> 52.26666667 | CD197: 52.27 | CE197: 2613.5
A198: 990608006 - 1 | B198: 196 | C198: 28 | D198: un | E198: Funil sanfonado para abastecimento de combustível/ óleo | P198: 30 | X198: 15.9 | AU198: 16.31 | CC198: =AVERAGE(Q198:CB198) -> 16.105 | CD198: 16.11 | CE198: 451.08
A199: 990607030 - 2 | B199: 197 | C199: 19 | D199: un | E199: Furadeira de impacto 1/2" 750 W | P199: 600 | AA199: 399.9 | AU199: 479.99 | CC199: =AVERAGE(Q199:CB199) -> 439.945 | CD199: 439.95 | CE199: 8359.05
A200: 990608007 - 1 | B200: 198 | C200: 85 | D200: un | E200: GARFO ROLO 400 X 23CM C/GAIOLA S/ROSCA | P200: 12 | AB200: 11.85 | AK200: 12.9 | CC200: =AVERAGE(F200:CB200) -> 12.25 | CD200: 12.25 | CE200: 1041.25
... 126 more rows
